Workbook

Sheet Март
A1: Дата | B1: Бай-ин | C1: Ребай | D1: Аддон | E1: Кол-во ребаев | F1: Аддон да/нет | G1: Награда за выбивание | H1: Кол-во наград | I1: Затраты | J1: Revenue | K1: Profit | L1: ROI | M1: Комментарии
M2: Сателлит | N2: Человек | O2: Ребаев | P2: Аддонов | Q2: Место | R2: Выиграны ТД
A3: 550+3RB | B3: =B4 -> 0 | I3: =I4 -> 0 | J3: =J4 -> 0 | K3: =K4 -> 0 | L3: =J3/I3-1 -> 
A5: 330+3RB | B5: =B6 -> 330 | I5: =I6 -> 1230 | J5: =J6 -> 0 | K5: =K6 -> -1230 | L5: =J5/I5-1 -> -1
A6: 2016-03-25 | B6: 330 | C6: 300 | E6: 3 | I6: =B6+C6*E6+D6*F6 -> 1230 | J6: =G6*H6 -> 0 | K6: =J6-I6 -> -1230 | L6: =J6/I6-1 -> -1 | Q6: 47
A7: ClasFri+RA | B7: =B8 -> 275 | I7: =I8 -> 525 | J7: =J8 -> 0 | K7: =K8 -> -525 | L7: -1
A8: 2016-03-25 | B8: 275 | C8: 250 | D8: 250 | E8: 0 | F8: 1 | I8: =B8+C8*E8+D8*F8 -> 525 | J8: =G8*H8 -> 0 | K8: =J8-I8 -> -525 | L8: -1 | Q8: 18
A9: 210+RA+Bounty | B9: =B10 -> 210 | I9: =I10 -> 910 | J9: =J10 -> 2555 | K9: =K10 -> 1645 | L9: 1.807692308
A10: 2016-03-28 | B10: 210 | C10: 200 | D10: 100 | E10: 3 | F10: 1 | G10: 100 | H10: 2 | I10: =B10+C10*E10+D10*F10 -> 910 | J10: =G10*H10+2355 -> 2555 | K10: =J10-I10 -> 1645 | L10: 1.807692308 | N10: 55 | O10: 76 | P10: 26 | Q10: 3
A11: 110+RA | B11: =B12+B13 -> 220 | I11: =I12+I13 -> 1020 | J11: =J12+J13 -> 0 | K11: =K12+K13 -> -1020 | L11: =J11/I11-1 -> -1
A12: 2016-03-23 | B12: 110 | C12: 100 | D12: 100 | E12: 2 | F12: 0 | I12: =B12+C12*E12+D12*F12 -> 310 | J12: =G12*H12 -> 0 | K12: =J12-I12 -> -310 | L12: -1 | N12: 78 | O12: 117 | P12: 49 | Q12: 33
A13: 2016-03-28 | B13: 110 | C13: 100 | D13: 100 | E13: 6 | I13: =B13+C13*E13+D13*F13 -> 710 | J13: =G13*H13 -> 0 | K13: =J13-I13 -> -710 | L13: =J13/I13-1 -> -1
A14: 105+RA+Bounty | B14: =B15+B16+B17 -> 315 | I14: =I15+I16+I17 -> 1415 | J14: =J15+J16+J17 -> 50 | K14: =K15+K16+K17 -> -1365 | L14: -0.964664311
A15: 2016-03-23 | B15: 105 | C15: 100 | D15: 50 | E15: 4.5 | F15: 1 | G15: 50 | I15: =B15+C15*E15+D15*F15 -> 605 | J15: =G15*H15 -> 0 | K15: =J15-I15 -> -605 | L15: -1 | Q15: 32
A16: 2016-03-25 | B16: 105 | C16: 100 | D16: 50 | E16: 3.5 | F16: 1 | G16: 50 | I16: =B16+C16*E16+D16*F16 -> 505 | J16: =G16*H16 -> 0 | K16: =J16-I16 -> -505 | L16: =J16/I16-1 -> -1
A17: 2016-03-30 | B17: 105 | C17: 100 | D17: 50 | E17: 1.5 | F17: 1 | G17: 50 | H17: 1 | I17: =B17+C17*E17+D17*F17 -> 305 | J17: =G17*H17 -> 50 | K17: =J17-I17 -> -255 | L17: =J17/I17-1 -> -0.8360655738 | Q17: 24
A18: 84+RA+Bounty | B18: =B19+B20+B21+B22+B23+B24+B25 -> 588 | I18: =I19+I20+I21+I22+I23+I24+I25 -> 1988 | J18: =J19+J20+J21+J22+J23+J24+J25 -> 1680 | K18: =K19+K20+K21+K22+K23+K24+K25 -> -308 | L18: -0.1549295775
A19: 2016-03-17 | B19: 84 | C19: 80 | D19: 40 | E19: 4 | F19: 1 | G19: 40 | H19: 2 | I19: =B19+C19*E19+D19*F19+40 -> 484 | J19: =G19*H19 -> 80 | K19: =J19-I19 -> -404 | L19: -0.8347107438 | N19: 89 | O19: 185 | P19: 53 | Q19: 21
A20: 2016-03-18 | B20: 84 | C20: 80 | D20: 40 | E20: 1.5 | F20: 1 | G20: 40 | H20: 5 | I20: =B20+C20*E20+D20*F20 -> 244 | J20: =G20*H20+840 -> 1040 | K20: 796 | L20: 3.262295082 | N20: 87 | O20: 159 | P20: 54 | Q20: 5
A21: 2016-03-19 | B21: 84 | C21: 80 | D21: 40 | E21: 1.5 | F21: 1 | G21: 40 | H21: 3 | I21: 244 | J21: =G21*H21 -> 120 | K21: -124 | L21: -0.5081967213 | N21: 99 | O21: 129 | P21: 58 | Q21: 35
A22: 2016-03-25 | B22: 84 | C22: 80 | D22: 40 | E22: 4 | F22: 0 | G22: 40 | H22: 1 | I22: 404 | J22: =G22*H22 -> 40 | K22: -364 | L22: =J22/I22-1 -> -0.900990099 | Q22: 66
A23: 2016-03-26 | B23: 84 | C23: 80 | D23: 40 | E23: 0 | F23: 1 | G23: 40 | H23: 3 | I23: 124 | J23: =G23*H23 -> 120 | K23: -4 | L23: =J23/I23-1 -> -0.03225806452 | N23: 93 | O23: 144 | P23: 61 | Q23: 51
A24: 2016-03-26 | B24: 84 | C24: 80 | D24: 40 | E24: 1.5 | F24: 1 | G24: 40 | H24: 6 | I24: 244 | J24: =G24*H24 -> 240 | K24: -4 | L24: =J24/I24-1 -> -0.01639344262 | N24: 81 | O24: 183 | P24: 59 | Q24: 17
A25: 2016-03-26 | B25: 84 | C25: 80 | D25: 40 | E25: 1.5 | F25: 1 | G25: 40 | H25: 1 | I25: 244 | J25: =G25*H25 -> 40 | K25: =J25-I25 -> -204 | L25: =J25/I25-1 -> -0.8360655738 | N25: 99 | O25: 168 | P25: 61 | Q25: 29
A26: 66+1R+1A | B26: =B27 -> 66 | I26: =I27 -> 186 | J26: =J27 -> 0 | K26: =K27 -> -186 | L26: -1
A27: 2016-03-16 | B27: 66 | C27: 60 | D27: 60 | E27: 1 | F27: 1 | I27: =B27+C27*E27+D27*F27 -> 186 | J27: 0 | K27: =J27-I27 -> -186 | L27: =J27/I27-1 -> -1 | N27: 67 | O27: 43 | P27: 35 | Q27: 16
A28: 52+RA+Bounty | B28: =B29+B30+B31 -> 156 | I28: =I29+I30+I31 -> 381 | J28: =J29+J30+J31 -> 1848.37 | K28: =K29+K30+K31 -> 1467.37 | L28: =J28/I28-1 -> 3.851364829
A29: 2016-03-17 | B29: 52 | C29: 50 | D29: 25 | E29: 1.5 | F29: 1 | G29: 25 | H29: 3 | I29: =B29+C29*E29+D29*F29 -> 152 | J29: =G29*H29+1207.13 -> 1282.13 | K29: =J29-I29 -> 1130.13 | L29: =J29/I29-1 -> 7.435065789 | N29: 73 | O29: 140 | P29: 48 | Q29: 2
A30: 2016-03-18 | B30: 52 | C30: 50 | D30: 25 | E30: 0 | F30: 1 | G30: 25 | H30: 6 | I30: =B30+C30*E30+D30*F30 -> 77 | J30: =G30*H30+341.24 -> 491.24 | K30: =J30-I30 -> 414.24 | L30: =J30/I30-1 -> 5.37974026 | N30: 74 | O30: 142 | P30: 44 | Q30: 6
A31: 2016-03-20 | B31: 52 | C31: 50 | D31: 25 | E31: 1.5 | F31: 1 | G31: 25 | H31: 3 | I31: =B31+C31*E31+D31*F31 -> 152 | J31: =G31*H31 -> 75 | K31: =J31-I31 -> -77 | L31: =J31/I31-1 -> -0.5065789474 | N31: 78 | O31: 149 | P31: 52 | Q31: 20
A32: 42+RA+Bounty | B32: =B33+B34+B35+B36+B37+B38+B39+B40+B41+B42+B43+B44+B45+B46+B47+B48+B49+B50+B51 -> 798 | I32: =I33+I34+I35+I36+I37+I38+I39+I40+I41+I42+I43+I44+I45+I46+I47+I48+I49+I50+I51 -> 2898 | J32: =J33+J34+J35+J36+J37+J38+J39+J40+J41+J42+J43+J44+J45+J46+J47+J48+J49+J50+J51 -> 5772.76 | K32: =+K33+K34+K35+K36+K37+K38+K39+K40+K41+K42+K43+K44+K45+K46+K47+K48+K49+K50+K51 -> 2874.76 | L32: =J32/I32-1 -> 0.9919806763
A33: 2016-03-16 | B33: 42 | C33: 40 | D33: 20 | E33: 0 | F33: 1 | G33: 20 | H33: 11 | I33: =B33+C33*E33+D33*F33 -> 62 | J33: =G33*H33+1212 -> 1432 | K33: =J33-I33 -> 1370 | L33: =J33/I33-1 -> 22.09677419 | N33: 85 | O33: 176 | P33: 52 | Q33: 1
A34: 2016-03-16 | B34: 42 | C34: 40 | D34: 20 | E34: 1 | F34: 1 | G34: 20 | H34: 2 | I34: 102 | J34: =G34*H34 -> 40 | K34: -62 | L34: =J34/I34-1 -> -0.6078431373 | N34: 92 | O34: 174 | P34: 63 | Q34: 23
A35: 2016-03-16 | B35: 42 | C35: 40 | D35: 20 | E35: 3 | F35: 1 | G35: 20 | H35: 0 | I35: 182 | J35: =G35*H35 -> 0 | K35: -182 | L35: =J35/I35-1 -> -1 | N35: 105 | O35: 193 | P35: 63 | Q35: 25
A36: 2016-03-17 | B36: 42 | C36: 40 | D36: 20 | E36: 3 | F36: 1 | G36: 20 | H36: 1 | I36: 182 | J36: =G36*H36 -> 20 | K36: -162 | L36: =J36/I36-1 -> -0.8901098901 | N36: 84 | O36: 175 | P36: 55 | Q36: 60
A37: 2016-03-17 | B37: 42 | C37: 40 | D37: 20 | E37: 1.5 | F37: 1 | G37: 20 | H37: 5 | I37: 122 | J37: =G37*H37+171.36 -> 271.36 | K37: 149.36 | L37: =J37/I37-1 -> 1.224262295 | N37: 98 | O37: 246 | P37: 64 | Q37: 13
A38: 2016-03-17 | B38: 42 | C38: 40 | D38: 20 | E38: 1.5 | F38: 1 | G38: 20 | H38: 1.5 | I38: 122 | J38: =G38*H38 -> 30 | K38: -92 | L38: =J38/I38-1 -> -0.7540983607 | Q38: 41
A39: 2016-03-18 | B39: 42 | C39: 40 | D39: 20 | E39: 4.5 | F39: 1 | G39: 20 | H39: 2 | I39: =B39+C39*E39+D39*F39 -> 242 | J39: =G39*H39 -> 40 | K39: =J39-I39 -> -202 | L39: =J39/I39-1 -> -0.8347107438 | N39: 76 | O39: 197 | P39: 45 | Q39: 18
A40: 2016-03-19 | B40: 42 | C40: 40 | D40: 20 | E40: 1.5 | F40: 1 | G40: 20 | H40: 1 | I40: =B40+C40*E40+D40*F40 -> 122 | J40: =G40*H40 -> 20 | K40: =J40-I40 -> -102 | L40: =J40/I40-1 -> -0.8360655738 | N40: 81 | O40: 171 | P40: 49 | Q40: 16
A41: 2016-03-19 | B41: 42 | C41: 40 | D41: 20 | E41: 4.5 | F41: 1 | G41: 20 | H41: 15 | I41: =B41+C41*E41+D41*F41 -> 242 | J41: =G41*H41+1457.5 -> 1757.5 | K41: =J41-I41 -> 1515.5 | L41: =J41/I41-1 -> 6.262396694 | N41: 75 | O41: 144 | P41: 46 | Q41: 1
A42: 2016-03-19 | B42: 42 | C42: 40 | D42: 20 | E42: 3 | F42: 1 | G42: 20 | H42: 1 | I42: =B42+C42*E42+D42*F42 -> 182 | J42: =G42*H42 -> 20 | K42: =J42-I42 -> -162 | L42: =J42/I42-1 -> -0.8901098901 | Q42: 61
A43: 2016-03-20 | B43: 42 | C43: 40 | D43: 20 | E43: 3 | F43: 1 | G43: 20 | H43: 14 | I43: =B43+C43*E43+D43*F43 -> 182 | J43: =G43*H43+1479.4 -> 1759.4 | K43: =J43-I43 -> 1577.4 | L43: =J43/I43-1 -> 8.667032967 | N43: 81 | O43: 195 | P43: 51 | Q43: 2
A44: 2016-03-20 | B44: 42 | C44: 40 | D44: 20 | E44: 1.5 | F44: 1 | G44: 20 | H44: 1 | I44: =B44+C44*E44+D44*F44 -> 122 | J44: =G44*H44 -> 20 | K44: =J44-I44 -> -102 | L44: =J44/I44-1 -> -0.8360655738 | Q44: х
A45: 2016-03-20 | B45: 42 | C45: 40 | D45: 20 | E45: 0 | F45: 0 | G45: 20 | H45: 0 | I45: =B45+C45*E45+D45*F45 -> 42 | J45: =G45*H45 -> 0 | K45: =J45-I45 -> -42 | L45: =J45/I45-1 -> -1 | Q45: 60
A46: 2016-03-23 | B46: 42 | C46: 40 | D46: 20 | E46: 1.5 | F46: 1 | G46: 20 | H46: 0 | I46: =B46+C46*E46+D46*F46 -> 122 | J46: =G46*H46 -> 0 | K46: =J46-I46 -> -122 | L46: =J46/I46-1 -> -1 | Q46: 39
A47: 2016-03-23 | B47: 42 | C47: 40 | D47: 20 | E47: 4.5 | F47: 1 | G47: 20 | H47: 3 | I47: =B47+C47*E47+D47*F47 -> 242 | J47: =G47*H47+262.5 -> 322.5 | K47: =J47-I47 -> 80.5 | L47: =J47/I47-1 -> 0.3326446281 | N47: 101 | O47: 210 | P47: 64 | Q47: 8
A48: 2016-03-25 | B48: 42 | C48: 40 | D48: 20 | E48: 3 | F48: 0 | G48: 20 | H48: 0 | I48: =B48+C48*E48+D48*F48 -> 162 | J48: =G48*H48 -> 0 | K48: =J48-I48 -> -162 | L48: =J48/I48-1 -> -1 | Q48: 72
A49: 2016-03-28 | B49: 42 | C49: 40 | D49: 20 | E49: 4.5 | F49: 1 | G49: 20 | H49: 1 | I49: =B49+C49*E49+D49*F49 -> 242 | J49: =G49*H49 -> 20 | K49: =J49-I49 -> -222 | L49: =J49/I49-1 -> -0.9173553719 | N49: 85 | O49: 206 | P49: 56 | Q49: 41
A50: 2016-03-30 | B50: 42 | C50: 40 | D50: 20 | E50: 3 | F50: 1 | G50: 20 | H50: 1 | I50: =B50+C50*E50+D50*F50 -> 182 | J50: =G50*H50 -> 20 | K50: =J50-I50 -> -162 | L50: =J50/I50-1 -> -0.8901098901 | Q50: 41
A51: 2016-03-30 | B51: 42 | C51: 40 | D51: 20 | E51: 0 | F51: 0 | G51: 20 | H51: 0 | I51: =B51+C51*E51+D51*F51 -> 42 | J51: =G51*H51 -> 0 | K51: =J51-I51 -> -42 | L51: =J51/I51-1 -> -1 | Q51: 58
A52: 33+RA | B52: =B53 -> 33 | I52: =I53 -> 153 | J52: =J53 -> 0 | K52: =K53 -> -153 | L52: =J52/I52-1 -> -1
A53: 2016-03-16 | B53: 33 | C53: 30 | D53: 30 | E53: 3 | F53: 1 | I53: =B53+C53*E53+D53*F53 -> 153 | J53: 0 | K53: =J53-I53 -> -153 | L53: =J53/I53-1 -> -1 | N53: 52 | O53: 96 | P53: 38 | Q53: 31
A54: 21+RA+Bounty | B54: =B55+B56+B57+B58+B59+B60+B61 -> 126 | I54: =I55+I56+I57+I58+I59+I60+I61 -> 356 | J54: =J55+J56+J57+J58+J59+J60+J61 -> 510.63 | K54: =K55+K56+K57+K58+K59+K60+K61 -> 154.63 | L54: =J54/I54-1 -> 0.4343539326
A55: 2016-03-16 | B55: 21 | C55: 20 | D55: 10 | E55: 1 | F55: 1 | G55: 15 | H55: 8 | I55: =B55+C55*E55+D55*F55+5 -> 56 | J55: =G55*H55+240.63 -> 360.63 | K55: =J55-I55 -> 304.63 | L55: =J55/I55-1 -> 5.439821429 | N55: 56 | O55: 120 | P55: 29 | Q55: 2
A56: 2016-03-17 | B56: 21 | C56: 20 | D56: 10 | E56: 0 | F56: 1 | G56: 15 | H56: 0 | I56: =B56+C56*E56+D56*F56 -> 31 | J56: =G56*H56 -> 0 | K56: -31 | L56: =J56/I56-1 -> -1 | Q56: 41
A57: 2016-03-17 | B57: 21 | C57: 20 | D57: 5 | E57: 1 | F57: 1 | G57: 15 | H57: 1 | I57: =B57+C57*E57+D57*F57+5 -> 51 | J57: 15 | K57: -36 | L57: =J57/I57-1 -> -0.7058823529 | N57: 60 | O57: 105 | P57: 30 | Q57: 29
A58: 2016-03-19 | B58: 21 | C58: 20 | D58: 5 | E58: 3.5 | F58: 1 | G58: 15 | H58: 8 | I58: =B58+C58*E58+D58*F58+5 -> 101 | J58: 120 | K58: 19 | L58: =J58/I58-1 -> 0.1881188119 | N58: 62 | O58: 141 | P58: 36 | Q58: 19
A59: 2016-03-23 | B59: 21 | C59: 20 | D59: 5 | E59: 1 | F59: 1 | G59: 15 | H59: 1 | I59: =B59+C59*E59+D59*F59+5 -> 51 | J59: 15 | K59: -36 | L59: =J59/I59-1 -> -0.7058823529 | N59: 54 | O59: 119 | P59: 33 | Q59: 19
A60: 2016-03-26 | B60: 21 | C60: 20 | D60: 10 | E60: 1.5 | F60: 1 | G60: 15 | I60: =B60+C60*E60+D60*F60+5 -> 66 | J60: 0 | K60: -66 | L60: =J60/I60-1 -> -1 | N60: 89 | O60: 179 | P60: 53 | Q60: 15
A61: 2016-03-30 | I61: =B61+C61*E61+D61*F61 -> 0 | J61: 0 | K61: =J61-I61 -> 0 | L61: =J61/I61-1 -> 
A62: 110 freez | B62: =B63+B64+B65+B66+B67+B68 -> 660 | I62: =I63+I64+I65+I66+I67+I68 -> 660 | J62: =J63+J64+J65+J66+J67+J68 -> 0 | K62: =K63+K64+K65+K66+K67+K68 -> -660 | L62: =J62/I62-1 -> -1
A63: 2016-03-16 | B63: 110 | I63: =B63+C63*E63+D63*F63 -> 110 | J63: 0 | K63: =J63-I63 -> -110 | L63: =J63/I63-1 -> -1
A64: 2016-03-17 | B64: 110 | I64: 110 | J64: 0 | K64: =J64-I64 -> -110 | L64: =J64/I64-1 -> -1 | Q64: 14
A65: 2016-03-17 | B65: 110 | I65: 110 | J65: 0 | K65: =J65-I65 -> -110 | L65: =J65/I65-1 -> -1 | Q65: 30
A66: 2016-03-18 | B66: 110 | I66: 110 | J66: 0 | K66: =J66-I66 -> -110 | L66: =J66/I66-1 -> -1 | Q66: 31
A67: 2016-03-20 | B67: 110 | I67: 110 | J67: 0 | K67: =J67-I67 -> -110 | L67: =J67/I67-1 -> -1 | N67: 68 | Q67: 18
A68: 2016-03-28 | B68: 110 | I68: 110 | J68: 0 | K68: =J68-I68 -> -110 | L68: =J68/I68-1 -> -1
A69: 77 freez | B69: =B70+B71 -> 154 | I69: =I70+I71 -> 154 | J69: =J70+J71 -> 439.7 | K69: =K70+K71 -> 285.7 | L69: =J69/I69-1 -> 1.855194805
A70: 2016-03-17 | B70: 77 | I70: =B70+C70*E70+D70*F70 -> 77 | J70: =G70*H70+439.7 -> 439.7 | K70: =J70-I70 -> 362.7 | L70: =J70/I70-1 -> 4.71038961 | P70: 69 | Q70: 4
A71: 2016-03-26 | B71: 77 | I71: =B71+C71*E71+D71*F71 -> 77 | J71: =G71*H71 -> 0 | K71: =J71-I71 -> -77 | L71: =J71/I71-1 -> -1
A72: 55 freez | B72: =B73 -> 55 | I72: =I73 -> 55 | J72: =J73 -> 0 | K72: =K73 -> -55 | L72: =J72/I72-1 -> -1
A73: 2016-03-23 | B73: 55 | I73: =B73+C73*E73+D73*F73 -> 55 | J73: =G73*H5 -> 0 | K73: =J73-I73 -> -55 | L73: =J73/I73-1 -> -1 | Q73: 32
A74: 22 freez | B74: =B75+B76 -> 44 | I74: =I75+I76 -> 44 | J74: =J75+J76 -> 0 | K74: =K75+K76 -> -44 | L74: =J74/I74-1 -> -1
A75: 2016-03-16 | B75: 22 | I75: =B75+C75*E75+D75*F75 -> 22 | J75: 0 | K75: =J75-I75 -> -22 | L75: =J75/I75-1 -> -1
A76: 2016-03-17 | B76: 22 | I76: =B76+C76*E76+D76*F76 -> 22 | J76: 0 | K76: =J76-I76 -> -22 | L76: =J76/I76-1 -> -1 | P76: 24 | Q76: 39
A77: Итого | B77: =B3+B54+B32+B26+B52+B62+B74+B18+B69+B5+B28+B14+B12+B72+B11+B7+B9 -> 4140 | I77: =I3+I54+I32+I26+I52+I62+I74+I18+I5+I69+I28+I14+I12+I72+I11+I7+I9 -> 12285 | J77: =J3+J54+J32+J26+J52+J62+J74+J5+J18+J69+J28+J14+J12+J72+J11+J7+J9 -> 12856.46 | K77: =K3+K54+K32+K26+K52+K62+K74+K5+K18+K69+K28+K14+K12+K72+K11+K7+K9 -> 571.46 | L77: =J77/I77-1 -> 0.04651689052 | Q77: 11 ИТМ
A78: Кэш | K78: 363.4
J79: Баланс | K79: =1435.85+K77+K78 -> 2370.71
A80: 56
A88: 2016-03-16 | B88: 873 | C88: 1832.63 | D88: 959.63 | E88: =D88 -> 959.63
A89: 2016-03-17 | B89: 1463 | C89: 2138.19 | D89: 675.19 | E89: =D89+E88 -> 1634.82
A90: 2016-03-18 | B90: 673 | C90: 1571.24 | D90: 898.24 | E90: =D90+E89 -> 2533.06
A91: 2016-03-19 | B91: 891 | C91: 2037.5 | D91: 1146.5 | E91: 3679.56
A92: 2016-03-20 | B92: 608 | C92: 1854.4 | D92: 1246.4 | E92: 4925.96
A93: 2016-03-23 | B93: 1695 | C93: 337.5 | D93: =C93-B93 -> -1357.5 | E93: 3568.46
A94: 2016-03-25 | B94: 2826 | C94: 40 | D94: -2786 | E94: 782.46
A95: 2016-03-26 | B95: 755 | C95: 400 | D95: -355 | E95: 427.46
A96: 2016-03-28 | B96: 1972 | C96: 2575 | D96: 603 | E96: 1030.46
A97: 2016-03-30 | B97: 529 | C97: 70 | D97: -459 | E97: 571.46

Sheet Апрель
A1: Дата | B1: Бай-ин | C1: Ребай | D1: Аддон | E1: Кол-во ребаев | F1: Аддон да/нет | G1: Награда за выбивание | H1: Кол-во наград | I1: Затраты | J1: Revenue | K1: Profit | L1: ROI | M1: Комментарии
M2: Сателлит | N2: Человек | O2: Ребаев | P2: Аддонов | Q2: Место | R2: Выиграны ТД
A3: 550+3RB | B3: =B4 -> 0 | I3: =I4 -> 0 | J3: =J4 -> 0 | K3: =K4 -> 0 | L3: =J3/I3-1 -> 
A4: 2016-04-04 | I4: =B4+C4*E4+D4*F4 -> 0 | J4: =G4*H4 -> 0 | K4: =J4-I4 -> 0 | L4: =J4/I4-1 -> 
A5: 330+3RB | B5: =B6 -> 0 | I5: =I6 -> 0 | J5: =J6 -> 0 | K5: =K6 -> 0 | L5: =J5/I5-1 -> 
I6: =B6+C6*E6+D6*F6 -> 0 | J6: =G6*H6 -> 0 | K6: =J6-I6 -> 0 | L6: =J6/I6-1 -> 
A7: ClasFri+RA | B7: =B8 -> 0 | I7: =I8 -> 0 | J7: =J8 -> 0 | K7: =K8 -> 0
I8: =B8+C8*E8+D8*F8 -> 0 | J8: =G8*H8 -> 0 | K8: =J8-I8 -> 0
A9: Sunday Special+RA | B9: =B10 -> 275 | I9: =I10 -> 1025 | J9: =J10 -> 2100 | K9: =K10 -> 1075 | L9: =J9/I9-1 -> 1.048780488
A10: 2016-04-03 | B10: 275 | C10: 250 | D10: 250 | E10: 2 | F10: 1 | I10: =B10+C10*E10+D10*F10 -> 1025 | J10: =G10*H10+2100 -> 2100 | K10: =J10-I10 -> 1075 | L10: 1.048780488 | N10: 102 | O10: 182 | P10: 42
A11: 210+RA+Bounty | B11: =B12 -> 210 | I11: =I12+I13 -> 920 | J11: =J12 -> 0 | K11: =K12+K13 -> -920 | L11: -1
A12: 2016-04-02 | B12: 210 | C12: 200 | D12: 100 | E12: 1 | G12: 100 | I12: =B12+C12*E12+D12*F12 -> 410 | J12: =G12*H12 -> 0 | K12: =J12-I12 -> -410 | L12: -1
A13: 2016-04-04 | B13: 210 | C13: 200 | D13: 100 | E13: 1.5 | G13: 100 | I13: =B13+C13*E13+D13*F13 -> 510 | J13: =G13*H13 -> 0 | K13: =J13-I13 -> -510 | L13: =J13/I13-1 -> -1
A14: 110+RA | B14: =B15+B16 -> 220 | I14: =I15+I16 -> 1020 | J14: =J15+J16 -> 1365 | K14: =K15+K16 -> 345 | L14: 0.3382352941
A15: 2016-04-03 | B15: 110 | C15: 100 | D15: 100 | E15: 2 | F15: 1 | I15: =B15+C15*E15+D15*F15 -> 410 | J15: =G15*H15+1365 -> 1365 | K15: =J15-I15 -> 955 | L15: =J15/I15-1 -> 2.329268293 | N15: 65 | O15: 80 | P15: 37 | Q15: 5
A16: 2016-04-03 | B16: 110 | C16: 100 | D16: 100 | E16: 4 | F16: 1 | I16: =B16+C16*E16+D16*F16 -> 610 | J16: =G16*H16 -> 0 | K16: =J16-I16 -> -610 | L16: =J16/I16-1 -> -1 | N16: 61 | O16: 100 | P16: 32
A17: 105+RA+Bounty | B17: =B18+B19+B20 -> 0 | I17: =I18+I19+I20 -> 0 | J17: =J18+J19+J20 -> 0 | K17: =K18+K19+K20 -> 0
A21: 84+RA+Bounty | B21: =B22+B23+B24+B25+B26+B27+B28 -> 252 | I21: =I22+I23+I24+I25+I26+I27+I28 -> 1292 | J21: =J22+J23+J24+J25+J26+J27+J28 -> 320 | K21: =K22+K23+K24+K25+K26+K27+K28 -> -972 | L21: -0.7523219814
A22: 2016-04-02 | B22: 84 | C22: 80 | D22: 40 | E22: 6 | F22: 0 | G22: 40 | H22: 0 | I22: =B22+C22*E22+D22*F22 -> 564 | J22: =G22*H22 -> 0 | K22: =J22-I22 -> -564 | L22: -1
A23: 2016-04-02 | B23: 84 | C23: 80 | D23: 40 | E23: 1.5 | F23: 1 | G23: 40 | H23: 4 | I23: =B23+C23*E23+D23*F23 -> 244 | J23: =G23*H23 -> 160 | K23: =J23-I23 -> -84 | L23: =J23/I23-1 -> -0.3442622951 | N23: 91 | O23: 138 | P23: 51
A24: 2016-04-02 | B24: 84 | C24: 80 | D24: 40 | E24: 3 | G24: 40 | H24: 1 | I24: =B24+C24*E24+D24*F24 -> 324 | J24: =G24*H24 -> 40 | K24: =J24-I24 -> -284 | L24: =J24/I24-1 -> -0.8765432099
A25: 2016-04-03 | B25: 0 | C25: 80 | D25: 40 | E25: 1.5 | F25: 1 | G25: 40 | H25: 3 | I25: =B25+C25*E25+D25*F25 -> 160 | J25: =G25*H25 -> 120 | K25: =J25-I25 -> -40 | L25: =J25/I25-1 -> -0.25 | Q25: 50 | S25: 84
A29: 66+1R+1A | B29: =B30 -> 0 | I29: =I30 -> 0 | J29: =J30 -> 0 | K29: =K30 -> 0
A31: 52+RA+Bounty | B31: =B32+B33+B34 -> 0 | I31: =I32+I33+I34 -> 175 | J31: =J32+J33+J34 -> 25 | K31: =K32+K33+K34 -> -150 | L31: =J31/I31-1 -> -0.8571428571
A32: 2016-04-03 | B32: 0 | C32: 50 | D32: 25 | E32: 3 | F32: 1 | G32: 25 | H32: 1 | I32: =B32+C32*E32+D32*F32 -> 175 | J32: =G32*H32 -> 25 | K32: =J32-I32 -> -150 | L32: =J32/I32-1 -> -0.8571428571 | N32: 60 | O32: 96 | P32: 31 | Q32: 18 | S32: 52
L33: =J33/I33-1 -> 
A35: 42+RA+Bounty | B35: =B36+B37+B38+B39+B40+B41+B42+B43+B44+B45+B46+B47+B48+B49+B50+B51+B52+B53+B54 -> 0 | I35: =I36+I37+I38+I39+I40+I41+I42+I43+I44+I45+I46+I47+I48+I49+I50+I51+I52+I53+I54 -> 20 | J35: =J36+J37+J38+J39+J40+J41+J42+J43+J44+J45+J46+J47+J48+J49+J50+J51+J52+J53+J54 -> 802.4 | K35: =+K36+K37+K38+K39+K40+K41+K42+K43+K44+K45+K46+K47+K48+K49+K50+K51+K52+K53+K54 -> 782.4 | L35: =J35/I35-1 -> 39.12
A36: 2016-04-03 | B36: 0 | C36: 40 | D36: 20 | E36: 0 | F36: 1 | G36: 20 | H36: 4 | I36: =B36+C36*E36+D36*F36 -> 20 | J36: =G36*H36+722.4 -> 802.4 | K36: =J36-I36 -> 782.4 | L36: =J36/I36-1 -> 39.12 | N36: 73 | O36: 144 | P36: 41 | S36: 42
L37: =J37/I37-1 -> 
A55: 33+RA | B55: =B56 -> 0 | I55: =I56 -> 0 | J55: =J56 -> 0 | K55: =K56 -> 0 | L55: =J55/I55-1 -> 
L56: =J56/I56-1 -> 
A57: 21+RA+Bounty | B57: =B58+B59+B60+B61+B62+B63+B64 -> 21 | I57: =I58+I59+I60+I61+I62+I63+I64 -> 151 | J57: =J58+J59+J60+J61+J62+J63+J64 -> 20 | K57: =K58+K59+K60+K61+K62+K63+K64 -> -131 | L57: =J57/I57-1 -> -0.8675496689
A58: 2016-04-02 | B58: 21 | C58: 20 | D58: 10 | E58: 6 | F58: 1 | G58: 10 | H58: 2 | I58: =B58+C58*E58+D58*F58 -> 151 | J58: =G58*H58 -> 20 | K58: =J58-I58 -> -131 | L58: =J58/I58-1 -> -0.8675496689 | N58: 72 | O58: 109 | P58: 36 | Q58: 24
L59: =J59/I59-1 -> 
A65: 110 freez | B65: =B66+B67+B68+B69+B70+B71 -> 110 | I65: =I66+I67+I68+I69+I70+I71 -> 110 | J65: =J66+J67+J68+J69+J70+J71 -> 0 | K65: =K66+K67+K68+K69+K70+K71 -> -110 | L65: =J65/I65-1 -> -1
A66: 2016-04-04 | B66: 110 | I66: =B66+C66*E66+D66*F66 -> 110 | J66: =G66*H66 -> 0 | K66: =J66-I66 -> -110 | L66: =J66/I66-1 -> -1
L67: =J67/I67-1 -> 
A72: 77 freez | B72: =B73+B74 -> 0 | I72: =I73+I74 -> 0 | J72: =J73+J74 -> 0 | K72: =K73+K74 -> 0 | L72: =J72/I72-1 -> 
L73: =J73/I73-1 -> 
A75: 55 freez | B75: =B76 -> 0 | I75: =I76 -> 0 | J75: =J76 -> 0 | K75: =K76 -> 0 | L75: =J75/I75-1 -> 
L76: =J76/I76-1 -> 
A77: 22 freez | B77: =B78+B79 -> 0 | I77: =I78+I79 -> 0 | J77: =J78+J79 -> 0 | K77: =K78+K79 -> 0 | L77: =J77/I77-1 -> 
L78: =J78/I78-1 -> 
A82: Итого | B82: =B3+B57+B35+B29+B55+B65+B77+B21+B72+B5+B31+B17+B15+B75+B14+B7+B11+B9 -> 1198 | I82: =I3+I57+I35+I29+I55+I65+I77+I21+I5+I72+I31+I17+I15+I75+I14+I7+I11+I9 -> 5123 | J82: =J3+J57+J35+J29+J55+J65+J77+J5+J21+J72+J31+J17+J15+J75+J14+J7+J11+J9 -> 5997.4 | K82: =K3+K57+K35+K29+K55+K65+K77+K5+K21+K72+K31+K17+K15+K75+K14+K7+K11+K9 -> 874.4 | L82: =J82/I82-1 -> 0.1706812415
A83: Кэш | K83: 845.07
A84: Рейкбек | K84: 1000
J85: Баланс | K85: =Март!K79+K82+K83+K84+K87+K90+K92 -> 2615.18
A87: ROPL Main Sat | B87: =B88 -> 330 | I87: =I88 -> 930 | J87: =J88 -> 0 | K87: =K88+K89 -> -1560 | L87: =J87/I87-1 -> -1
A88: 2016-04-03 | B88: 330 | C88: 300 | E88: 2 | I88: =B88+C88*E88+D88*F88 -> 930 | J88: =G88*H88 -> 0 | K88: =J88-I88 -> -930 | L88: =J88/I88-1 -> -1
A89: 2016-04-04 | B89: 330 | C89: 300 | E89: 1 | I89: =B89+C89*E89+D89*F89 -> 630 | J89: =G89*H89 -> 0 | K89: =J89-I89 -> -630 | L89: =J89/I89-1 -> -1
A90: BPT Grand Sat | B90: =B91 -> 385 | I90: =I91 -> 385 | J90: =J91 -> 0 | K90: =K91 -> -385 | L90: =J90/I90-1 -> -1
A91: 2016-04-04 | B91: 385 | C91: 350 | I91: =B91+C91*E91+D91*F91 -> 385 | J91: =G91*H91 -> 0 | K91: =J91-I91 -> -385 | L91: =J91/I91-1 -> -1
A92: Sunday Chance Sat | B92: =B93 -> 220 | I92: =I93 -> 420 | J92: =J93 -> 0 | K92: =K93+K94 -> -530 | L92: =J92/I92-1 -> -1
A93: 2016-04-04 | B93: 220 | C93: 200 | E93: 1 | I93: =B93+C93*E93+D93*F93 -> 420 | J93: =G93*H93 -> 0 | K93: =J93-I93 -> -420 | L93: =J93/I93-1 -> -1
A94: 2016-04-04 | B94: 110 | C94: 100 | I94: =B94+C94*E94+D94*F94 -> 110 | J94: =G94*H94 -> 0 | K94: =J94-I94 -> -110 | L94: =J94/I94-1 -> -1
A97: 12

Sheet Итого
A1: Игра | B1: Бай-ин | C1: Ребай | D1: Аддон | E1: Кол-во ребаев | F1: Аддон да/нет | G1: Награда за выбивание | H1: Кол-во наград | I1: Затраты | J1: Revenue | K1: Profit | L1: ROI
A3: Турниры | B3: =Март!B77+Апрель!B82 -> 5338 | I3: =Март!I77+Апрель!I82 -> 17408 | J3: =Март!J77+Апрель!J82 -> 18853.86 | K3: =Март!K77+Апрель!K82 -> 1445.86 | L3: =J3/I3-1 -> 0.08305721507
A4: Кэш | K4: =Март!K78+Апрель!K83 -> 1208.47
J5: Всего | K5: =K3+K4 -> 2654.33
